[Event "Titled Tuesday Blitz September 21 2021"]
[White "Budrewicz, Krzysztof"]
[Black "Vrencian, Lehel"]
[WhiteFideId "1127950"]
[BlackFideId "1230999"]
[WhiteElo "2242"]
[BlackElo "2058"]
[Result "0-1"]
[Round "06"]
[TimeControl "180+1"]
[Date "2021.09.21"]
[WhiteClock "0:00:24"]
[BlackClock "0:00:05"]

1. d4 {[%clk 0:03:00]}  Nf6 {[%clk 0:02:58]} 2. c4 {[%clk 0:03:00]}  e6 {[%clk 0:02:58]} 3. Nf3 {[%clk 0:03:00]}  b6 {[%clk 0:02:57]} 4. g3 {[%clk 0:03:00]}  Bb4+ {[%clk 0:02:56]} 5. Nbd2 {[%clk 0:02:57]}  Bb7 {[%clk 0:02:43]} 6. Bg2 {[%clk 0:02:57]}  c5 {[%clk 0:02:42]} 7. dxc5 {[%clk 0:02:53]}  Bxc5 {[%clk 0:02:40]} 8. O-O {[%clk 0:02:53]}  O-O {[%clk 0:02:39]} 9. Nb3 {[%clk 0:02:50]}  Be7 {[%clk 0:02:37]} 10. Nbd4 {[%clk 0:02:51]}  d6 {[%clk 0:02:35]} 11. h3 {[%clk 0:02:49]}  Nbd7 {[%clk 0:02:34]} 12. Be3 {[%clk 0:02:49]}  a6 {[%clk 0:02:32]} 13. Rc1 {[%clk 0:02:49]}  Rc8 {[%clk 0:02:30]} 14. b3 {[%clk 0:02:49]}  Qc7 {[%clk 0:02:28]} 15. Qd3 {[%clk 0:02:48]}  Nc5 {[%clk 0:02:18]} 16. Qb1 {[%clk 0:02:46]}  Qb8 {[%clk 0:02:15]} 17. Rfd1 {[%clk 0:02:45]}  Qa8 {[%clk 0:02:13]} 18. Ne1 {[%clk 0:02:41]}  Rfd8 {[%clk 0:02:05]} 19. Bxb7 {[%clk 0:02:40]}  Qxb7 {[%clk 0:02:05]} 20. Nd3 {[%clk 0:02:38]}  Nxd3 {[%clk 0:01:48]} 21. Qxd3 {[%clk 0:02:35]}  d5 {[%clk 0:01:44]} 22. cxd5 {[%clk 0:02:28]}  Nxd5 {[%clk 0:01:30]} 23. Rxc8 {[%clk 0:02:26]}  Rxc8 {[%clk 0:01:23]} 24. Bd2 {[%clk 0:02:26]}  Nf6 {[%clk 0:01:15]} 25. Rc1 {[%clk 0:02:18]}  h6 {[%clk 0:01:02]} 26. f3 {[%clk 0:02:11]}  Bc5 {[%clk 0:00:58]} 27. Be3 {[%clk 0:02:03]}  Nd5 {[%clk 0:00:48]} 28. Bf2 {[%clk 0:02:03]}  Bxd4 {[%clk 0:00:37]} 29. Rxc8+ {[%clk 0:02:00]}  Qxc8 {[%clk 0:00:38]} 30. Qxd4 {[%clk 0:01:59]}  Qc2 {[%clk 0:00:26]} 31. e4 {[%clk 0:01:52]}  Nc3 {[%clk 0:00:26]} 32. Qxb6 {[%clk 0:01:47]}  Qxa2 {[%clk 0:00:18]} 33. h4 {[%clk 0:01:42]}  Nd1 {[%clk 0:00:11]} 34. b4 {[%clk 0:01:42]}  Qe2 {[%clk 0:00:04]} 35. Kg2 {[%clk 0:01:42]}  Kh7 {[%clk 0:00:03]} 36. Qd4 {[%clk 0:01:38]}  Nb2 {[%clk 0:00:03]} 37. h5 {[%clk 0:01:31]}  Nd3 {[%clk 0:00:02]} 38. f4 {[%clk 0:00:58]}  Ne1+ {[%clk 0:00:02]} 39. Kg1 {[%clk 0:00:18]}  Nf3+ {[%clk 0:00:02]} 40. Kg2 {[%clk 0:00:18]}  Nxd4 {[%clk 0:00:02]} 41. f5 {[%clk 0:00:19]}  Qxe4+ {[%clk 0:00:03]} 42. Kg1 {[%clk 0:00:20]}  Nxf5 {[%clk 0:00:03]} 43. g4 {[%clk 0:00:20]}  Qxg4+ {[%clk 0:00:03]} 44. Kf1 {[%clk 0:00:21]}  Qf3 {[%clk 0:00:04]} 45. Ke1 {[%clk 0:00:22]}  Ng3 {[%clk 0:00:04]} 46. Bxg3 {[%clk 0:00:22]}  Qxg3+ {[%clk 0:00:05]} 47. Kd2 {[%clk 0:00:23]}  Qh4 {[%clk 0:00:05]} 48. Kc2 {[%clk 0:00:24]}  Qxb4 {[%clk 0:00:05]} 0-1


[Site "https://www.chess.com"]

[Event "Titled Tuesday Blitz September 21 2021"]
[White "Costachi, Mihnea"]
[Black "Dudzinski, Pawel"]
[WhiteFideId "1217518"]
[BlackFideId "1117890"]
[WhiteElo "2482"]
[BlackElo "2193"]
[Result "1/2-1/2"]
[Round "06"]
[TimeControl "180+1"]
[Date "2021.09.21"]
[WhiteClock "0:00:23"]
[BlackClock "0:00:05"]

1. d4 {[%clk 0:03:00]}  d5 {[%clk 0:02:59]} 2. c4 {[%clk 0:03:01]}  e6 {[%clk 0:02:59]} 3. Nc3 {[%clk 0:03:01]}  Nf6 {[%clk 0:03:00]} 4. cxd5 {[%clk 0:03:01]}  exd5 {[%clk 0:02:58]} 5. Bg5 {[%clk 0:03:01]}  Bb4 {[%clk 0:02:57]} 6. e3 {[%clk 0:03:01]}  O-O {[%clk 0:02:56]} 7. Bd3 {[%clk 0:02:57]}  h6 {[%clk 0:02:57]} 8. Bh4 {[%clk 0:02:56]}  c5 {[%clk 0:02:57]} 9. Nf3 {[%clk 0:02:52]}  Nc6 {[%clk 0:02:55]} 10. O-O {[%clk 0:02:50]}  cxd4 {[%clk 0:02:54]} 11. Nxd4 {[%clk 0:02:47]}  Nxd4 {[%clk 0:02:40]} 12. Bxf6 {[%clk 0:02:37]}  Qxf6 {[%clk 0:02:30]} 13. Nxd5 {[%clk 0:02:37]}  Qd6 {[%clk 0:02:19]} 14. Nxb4 {[%clk 0:02:36]}  Qxb4 {[%clk 0:02:19]} 15. exd4 {[%clk 0:02:35]}  Qxb2 {[%clk 0:02:20]} 16. Be4 {[%clk 0:02:27]}  Rd8 {[%clk 0:02:14]} 17. d5 {[%clk 0:02:27]}  Qf6 {[%clk 0:01:59]} 18. Qd3 {[%clk 0:02:15]}  b6 {[%clk 0:01:52]} 19. Rac1 {[%clk 0:02:06]}  Bg4 {[%clk 0:01:31]} 20. h3 {[%clk 0:01:50]}  Bh5 {[%clk 0:01:30]} 21. Rc6 {[%clk 0:01:47]}  Rd6 {[%clk 0:01:29]} 22. Rfc1 {[%clk 0:01:44]}  Rad8 {[%clk 0:01:28]} 23. Rc8 {[%clk 0:01:37]}  Bg6 {[%clk 0:01:24]} 24. Rxd8+ {[%clk 0:01:35]}  Qxd8 {[%clk 0:01:20]} 25. Bxg6 {[%clk 0:01:33]}  fxg6 {[%clk 0:01:20]} 26. Rd1 {[%clk 0:01:31]}  Kh7 {[%clk 0:01:19]} 27. a4 {[%clk 0:01:30]}  h5 {[%clk 0:01:18]} 28. Qb5 {[%clk 0:01:28]}  Qg5 {[%clk 0:01:02]} 29. a5 {[%clk 0:01:26]}  bxa5 {[%clk 0:00:56]} 30. Qxa5 {[%clk 0:01:27]}  a6 {[%clk 0:00:50]} 31. Qc5 {[%clk 0:01:26]}  Qe5 {[%clk 0:00:44]} 32. Qc4 {[%clk 0:01:24]}  a5 {[%clk 0:00:42]} 33. h4 {[%clk 0:01:10]}  a4 {[%clk 0:00:39]} 34. g3 {[%clk 0:01:10]}  a3 {[%clk 0:00:37]} 35. Qb3 {[%clk 0:01:09]}  Qb2 {[%clk 0:00:30]} 36. Qxb2 {[%clk 0:00:36]}  axb2 {[%clk 0:00:31]} 37. Rb1 {[%clk 0:00:37]}  Rxd5 {[%clk 0:00:22]} 38. Rxb2 {[%clk 0:00:37]}  g5 {[%clk 0:00:23]} 39. hxg5 {[%clk 0:00:32]}  Rxg5 {[%clk 0:00:24]} 40. Rb4 {[%clk 0:00:32]}  Kh6 {[%clk 0:00:22]} 41. Kg2 {[%clk 0:00:32]}  g6 {[%clk 0:00:23]} 42. f4 {[%clk 0:00:30]}  Ra5 {[%clk 0:00:23]} 43. Rb7 {[%clk 0:00:30]}  Ra2+ {[%clk 0:00:21]} 44. Kf3 {[%clk 0:00:30]}  Ra3+ {[%clk 0:00:21]} 45. Kg2 {[%clk 0:00:30]}  Ra2+ {[%clk 0:00:21]} 46. Kh3 {[%clk 0:00:31]}  Ra6 {[%clk 0:00:18]} 47. Rb8 {[%clk 0:00:31]}  Rc6 {[%clk 0:00:18]} 48. Kh4 {[%clk 0:00:31]}  Rc1 {[%clk 0:00:15]} 49. Rh8+ {[%clk 0:00:28]}  Kg7 {[%clk 0:00:15]} 50. Ra8 {[%clk 0:00:29]}  Kh6 {[%clk 0:00:15]} 51. Kh3 {[%clk 0:00:29]}  Rh1+ {[%clk 0:00:15]} 52. Kg2 {[%clk 0:00:30]}  Rb1 {[%clk 0:00:16]} 53. Ra6 {[%clk 0:00:31]}  Rb2+ {[%clk 0:00:16]} 54. Kf3 {[%clk 0:00:30]}  Rb3+ {[%clk 0:00:16]} 55. Kg2 {[%clk 0:00:31]}  Rb2+ {[%clk 0:00:16]} 56. Kh3 {[%clk 0:00:31]}  Rb5 {[%clk 0:00:16]} 57. Kh4 {[%clk 0:00:31]}  Rc5 {[%clk 0:00:16]} 58. Ra8 {[%clk 0:00:30]}  Rc1 {[%clk 0:00:16]} 59. Kh3 {[%clk 0:00:29]}  Rh1+ {[%clk 0:00:16]} 60. Kg2 {[%clk 0:00:29]}  Rb1 {[%clk 0:00:16]} 61. Rc8 {[%clk 0:00:29]}  Ra1 {[%clk 0:00:16]} 62. Rc2 {[%clk 0:00:27]}  Rb1 {[%clk 0:00:16]} 63. Rc3 {[%clk 0:00:27]}  Ra1 {[%clk 0:00:15]} 64. Kf3 {[%clk 0:00:28]}  Rb1 {[%clk 0:00:16]} 65. Ke4 {[%clk 0:00:29]}  Rb5 {[%clk 0:00:15]} 66. Ra3 {[%clk 0:00:28]}  Rc5 {[%clk 0:00:15]} 67. Kd4 {[%clk 0:00:28]}  Rb5 {[%clk 0:00:15]} 68. Kc4 {[%clk 0:00:28]}  Rf5 {[%clk 0:00:14]} 69. Rf3 {[%clk 0:00:29]}  Rf8 {[%clk 0:00:12]} 70. Kd5 {[%clk 0:00:29]}  Re8 {[%clk 0:00:12]} 71. Kd6 {[%clk 0:00:27]}  g5 {[%clk 0:00:11]} 72. f5 {[%clk 0:00:27]}  Kg7 {[%clk 0:00:09]} 73. f6+ {[%clk 0:00:22]}  Kf7 {[%clk 0:00:09]} 74. Rf5 {[%clk 0:00:22]}  Re6+ {[%clk 0:00:08]} 75. Kd5 {[%clk 0:00:23]}  Rxf6 {[%clk 0:00:07]} 76. Rxg5 {[%clk 0:00:23]}  Rg6 {[%clk 0:00:06]} 77. Rf5+ {[%clk 0:00:23]}  Kg7 {[%clk 0:00:06]} 78. Rf3 {[%clk 0:00:24]}  Rg4 {[%clk 0:00:04]} 79. Ke5 {[%clk 0:00:24]}  Kg6 {[%clk 0:00:05]} 80. Rf6+ {[%clk 0:00:23]}  Kg5 {[%clk 0:00:05]} 81. Rf5+ {[%clk 0:00:24]}  Kg6 {[%clk 0:00:05]} 82. Rf3 {[%clk 0:00:25]}  Kg5 {[%clk 0:00:05]} 83. Ke6 {[%clk 0:00:25]}  Kg6 {[%clk 0:00:05]} 84. Rf8 {[%clk 0:00:25]}  h4 {[%clk 0:00:05]} 85. Rg8+ {[%clk 0:00:23]}  Kh5 {[%clk 0:00:05]} 86. Rh8+ {[%clk 0:00:23]}  Kg5 {[%clk 0:00:06]} 87. gxh4+ {[%clk 0:00:22]}  Rxh4 {[%clk 0:00:06]} 88. Rf8 {[%clk 0:00:23]}  Rf4 {[%clk 0:00:05]} 89. Rg8+ {[%clk 0:00:23]}  Kh4 {[%clk 0:00:05]} 90. Ke5 {[%clk 0:00:24]}  Rf2 {[%clk 0:00:05]} 91. Rg7 {[%clk 0:00:23]}  Rf1 {[%clk 0:00:05]} 1/2-1/2


[Site "https://www.chess.com"]

[Event "Titled Tuesday Blitz September 21 2021"]
[White "Coto Mederos, Michel"]
[Black "Balleisen, Aaron"]
[WhiteFideId "3508528"]
[BlackFideId "2087073"]
[WhiteElo "2427"]
[BlackElo "2282"]
[Result "1/2-1/2"]
[Round "06"]
[TimeControl "180+1"]
[Date "2021.09.21"]
[WhiteClock "0:00:03"]
[BlackClock "0:00:15"]

1. c4 {[%clk 0:03:00]}  b6 {[%clk 0:02:59]} 2. Nc3 {[%clk 0:03:00]}  Bb7 {[%clk 0:03:00]} 3. e4 {[%clk 0:02:53]}  e6 {[%clk 0:02:57]} 4. Nf3 {[%clk 0:02:50]}  Bb4 {[%clk 0:02:54]} 5. d3 {[%clk 0:02:50]}  Ne7 {[%clk 0:02:49]} 6. Be2 {[%clk 0:02:33]}  O-O {[%clk 0:02:36]} 7. a3 {[%clk 0:02:22]}  Bxc3+ {[%clk 0:02:36]} 8. bxc3 {[%clk 0:02:23]}  c5 {[%clk 0:02:29]} 9. O-O {[%clk 0:02:16]}  Nbc6 {[%clk 0:02:21]} 10. Bg5 {[%clk 0:01:57]}  f6 {[%clk 0:02:21]} 11. Bh4 {[%clk 0:01:57]}  Ng6 {[%clk 0:02:18]} 12. Bg3 {[%clk 0:01:57]}  e5 {[%clk 0:02:14]} 13. d4 {[%clk 0:01:46]}  d6 {[%clk 0:02:12]} 14. Re1 {[%clk 0:01:40]}  Qe7 {[%clk 0:02:09]} 15. Bf1 {[%clk 0:01:35]}  Na5 {[%clk 0:02:05]} 16. Rb1 {[%clk 0:01:24]}  Ba6 {[%clk 0:02:04]} 17. Nd2 {[%clk 0:01:21]}  Qf7 {[%clk 0:02:00]} 18. d5 {[%clk 0:01:16]}  Qd7 {[%clk 0:01:59]} 19. Bd3 {[%clk 0:01:14]}  Rae8 {[%clk 0:01:50]} 20. f3 {[%clk 0:01:00]}  Nf4 {[%clk 0:01:46]} 21. Bf1 {[%clk 0:00:59]}  g5 {[%clk 0:01:39]} 22. Bf2 {[%clk 0:00:57]}  h5 {[%clk 0:01:35]} 23. Be3 {[%clk 0:00:57]}  Kf7 {[%clk 0:01:28]} 24. g3 {[%clk 0:00:53]}  Ng6 {[%clk 0:01:28]} 25. Bd3 {[%clk 0:00:45]}  Rh8 {[%clk 0:01:27]} 26. Kg2 {[%clk 0:00:35]}  Reg8 {[%clk 0:01:24]} 27. Rf1 {[%clk 0:00:31]}  h4 {[%clk 0:01:19]} 28. g4 {[%clk 0:00:31]}  h3+ {[%clk 0:01:15]} 29. Kh1 {[%clk 0:00:28]}  Nf4 {[%clk 0:01:15]} 30. Bxf4 {[%clk 0:00:28]}  gxf4 {[%clk 0:01:10]} 31. Rb2 {[%clk 0:00:28]}  Ke8 {[%clk 0:01:03]} 32. Rg1 {[%clk 0:00:23]}  Kd8 {[%clk 0:01:03]} 33. Qc2 {[%clk 0:00:21]}  Kc7 {[%clk 0:01:02]} 34. Rgb1 {[%clk 0:00:20]}  Rg7 {[%clk 0:00:55]} 35. Rc1 {[%clk 0:00:20]}  Qe8 {[%clk 0:00:49]} 36. Be2 {[%clk 0:00:20]}  Bc8 {[%clk 0:00:48]} 37. Rg1 {[%clk 0:00:16]}  Bd7 {[%clk 0:00:47]} 38. Qb1 {[%clk 0:00:15]}  Ba4 {[%clk 0:00:46]} 39. Bd1 {[%clk 0:00:14]}  Bd7 {[%clk 0:00:44]} 40. Be2 {[%clk 0:00:14]}  Rhg8 {[%clk 0:00:44]} 41. Nb3 {[%clk 0:00:14]}  Nxb3 {[%clk 0:00:43]} 42. Rxb3 {[%clk 0:00:15]}  Qc8 {[%clk 0:00:38]} 43. Qf1 {[%clk 0:00:14]}  Rh8 {[%clk 0:00:37]} 44. Rb2 {[%clk 0:00:13]}  Qa6 {[%clk 0:00:37]} 45. Qa1 {[%clk 0:00:12]}  Qa5 {[%clk 0:00:34]} 46. Rbb1 {[%clk 0:00:09]}  Bc8 {[%clk 0:00:33]} 47. a4 {[%clk 0:00:09]}  Bd7 {[%clk 0:00:27]} 48. Rb3 {[%clk 0:00:10]}  Kb7 {[%clk 0:00:23]} 49. Qb2 {[%clk 0:00:10]}  Rhg8 {[%clk 0:00:20]} 50. Rb5 {[%clk 0:00:09]}  Qa6 {[%clk 0:00:17]} 51. a5 {[%clk 0:00:09]}  Bxb5 {[%clk 0:00:16]} 52. cxb5 {[%clk 0:00:09]}  Qxa5 {[%clk 0:00:16]} 53. Ra1 {[%clk 0:00:10]}  Qxa1+ {[%clk 0:00:16]} 54. Qxa1 {[%clk 0:00:11]}  Kb8 {[%clk 0:00:16]} 55. Qf1 {[%clk 0:00:10]}  Rh8 {[%clk 0:00:16]} 56. Qf2 {[%clk 0:00:10]}  Rhh7 {[%clk 0:00:16]} 57. Bf1 {[%clk 0:00:11]}  Rh8 {[%clk 0:00:15]} 58. Qa2 {[%clk 0:00:12]}  Rgh7 {[%clk 0:00:15]} 59. Kg1 {[%clk 0:00:12]}  Rg7 {[%clk 0:00:15]} 60. Kf2 {[%clk 0:00:13]}  Rhh7 {[%clk 0:00:15]} 61. Ke1 {[%clk 0:00:13]}  Rh8 {[%clk 0:00:15]} 62. Kd1 {[%clk 0:00:13]}  Rh6 {[%clk 0:00:15]} 63. Kc1 {[%clk 0:00:13]}  Rh8 {[%clk 0:00:15]} 64. Kb2 {[%clk 0:00:13]}  Rhh7 {[%clk 0:00:15]} 65. Kb3 {[%clk 0:00:14]}  Rh8 {[%clk 0:00:15]} 66. Kc4 {[%clk 0:00:15]}  Rh6 {[%clk 0:00:14]} 67. Qf2 {[%clk 0:00:15]}  Rh8 {[%clk 0:00:13]} 68. Qg1 {[%clk 0:00:15]}  Rh6 {[%clk 0:00:13]} 69. Be2 {[%clk 0:00:15]}  Rh8 {[%clk 0:00:14]} 70. Bf1 {[%clk 0:00:14]}  Rh5 {[%clk 0:00:14]} 71. Qf2 {[%clk 0:00:14]}  Rhh7 {[%clk 0:00:14]} 72. Kd3 {[%clk 0:00:14]}  Rh8 {[%clk 0:00:14]} 73. Qa2 {[%clk 0:00:13]}  Rh6 {[%clk 0:00:14]} 74. Kd2 {[%clk 0:00:12]}  Rh8 {[%clk 0:00:14]} 75. Ke1 {[%clk 0:00:09]}  Rh6 {[%clk 0:00:14]} 76. Qb2 {[%clk 0:00:08]}  Rh8 {[%clk 0:00:15]} 77. Qe2 {[%clk 0:00:07]}  Rh6 {[%clk 0:00:15]} 78. Kf2 {[%clk 0:00:08]}  Rh8 {[%clk 0:00:15]} 79. Kg1 {[%clk 0:00:08]}  Rh6 {[%clk 0:00:15]} 80. Qf2 {[%clk 0:00:07]}  Rh8 {[%clk 0:00:15]} 81. Qe2 {[%clk 0:00:05]}  Rh6 {[%clk 0:00:15]} 82. Qa2 {[%clk 0:00:04]}  Rh8 {[%clk 0:00:16]} 83. Qb2 {[%clk 0:00:05]}  Rh6 {[%clk 0:00:16]} 84. Qa3 {[%clk 0:00:05]}  Rh8 {[%clk 0:00:16]} 85. Qa6 {[%clk 0:00:04]}  Rh6 {[%clk 0:00:15]} 86. Qa2 {[%clk 0:00:03]}  Rh8 {[%clk 0:00:15]} 1/2-1/2


[Site "https://www.chess.com"]

[Event "Titled Tuesday Blitz September 21 2021"]
[White "Deac, Bogdan-Daniel"]
[Black "Gabrielian, Artur"]
[WhiteFideId "1226380"]
[BlackFideId "4131002"]
[WhiteElo "2605"]
[BlackElo "2489"]
[Result "1-0"]
[Round "06"]
[TimeControl "180+1"]
[Date "2021.09.21"]
[WhiteClock "0:00:04"]
[BlackClock "0:00:05"]

1. e4 {[%clk 0:03:00]}  c5 {[%clk 0:02:59]} 2. Nf3 {[%clk 0:02:59]}  d6 {[%clk 0:03:00]} 3. Bb5+ {[%clk 0:02:58]}  Nd7 {[%clk 0:02:59]} 4. d4 {[%clk 0:02:57]}  cxd4 {[%clk 0:02:59]} 5. Qxd4 {[%clk 0:02:58]}  a6 {[%clk 0:02:58]} 6. Be2 {[%clk 0:02:58]}  Ngf6 {[%clk 0:02:58]} 7. O-O {[%clk 0:02:58]}  e5 {[%clk 0:02:58]} 8. Qe3 {[%clk 0:02:58]}  Nc5 {[%clk 0:02:55]} 9. Nfd2 {[%clk 0:02:58]}  Be7 {[%clk 0:02:55]} 10. c4 {[%clk 0:02:57]}  O-O {[%clk 0:02:55]} 11. Nc3 {[%clk 0:02:57]}  Ne6 {[%clk 0:02:55]} 12. Nb3 {[%clk 0:02:44]}  b5 {[%clk 0:02:36]} 13. cxb5 {[%clk 0:02:36]}  axb5 {[%clk 0:02:35]} 14. Bxb5 {[%clk 0:02:32]}  Bb7 {[%clk 0:02:35]} 15. Rd1 {[%clk 0:02:31]}  Nf4 {[%clk 0:02:32]} 16. Qf3 {[%clk 0:02:26]}  Ne6 {[%clk 0:02:26]} 17. Be3 {[%clk 0:02:17]}  Qb8 {[%clk 0:02:26]} 18. a4 {[%clk 0:02:08]}  Rc8 {[%clk 0:02:25]} 19. Rac1 {[%clk 0:02:03]}  Rxc3 {[%clk 0:02:21]} 20. bxc3 {[%clk 0:01:51]}  Nxe4 {[%clk 0:02:04]} 21. Qe2 {[%clk 0:01:48]}  d5 {[%clk 0:02:03]} 22. Nd2 {[%clk 0:01:37]}  Nd6 {[%clk 0:01:59]} 23. Nf3 {[%clk 0:01:34]}  f6 {[%clk 0:01:54]} 24. c4 {[%clk 0:01:21]}  d4 {[%clk 0:01:37]} 25. Bxd4 {[%clk 0:00:32]}  Nf4 {[%clk 0:01:20]} 26. Qe1 {[%clk 0:00:24]}  Qc8 {[%clk 0:01:09]} 27. Qe3 {[%clk 0:00:03]}  Qg4 {[%clk 0:00:59]} 28. Ne1 {[%clk 0:00:04]}  Nf5 {[%clk 0:00:58]} 29. h3 {[%clk 0:00:04]}  Qg6 {[%clk 0:00:55]} 30. Qb3 {[%clk 0:00:02]}  Bxg2 {[%clk 0:00:40]} 31. Kh2 {[%clk 0:00:02]}  Nxd4 {[%clk 0:00:31]} 32. Rxd4 {[%clk 0:00:02]}  exd4 {[%clk 0:00:31]} 33. Qg3 {[%clk 0:00:03]}  Bd6 {[%clk 0:00:26]} 34. Nxg2 {[%clk 0:00:02]}  Qxg3+ {[%clk 0:00:25]} 35. fxg3 {[%clk 0:00:02]}  Ne2 {[%clk 0:00:25]} 36. Rd1 {[%clk 0:00:03]}  Nxg3 {[%clk 0:00:23]} 37. Kg1 {[%clk 0:00:02]}  Bc5 {[%clk 0:00:22]} 38. Nf4 {[%clk 0:00:02]}  Nf5 {[%clk 0:00:18]} 39. Nd3 {[%clk 0:00:02]}  Be7 {[%clk 0:00:16]} 40. c5 {[%clk 0:00:02]}  Rc8 {[%clk 0:00:16]} 41. c6 {[%clk 0:00:02]}  Nd6 {[%clk 0:00:15]} 42. Rc1 {[%clk 0:00:03]}  Bd8 {[%clk 0:00:15]} 43. Ba6 {[%clk 0:00:02]}  Ra8 {[%clk 0:00:14]} 44. Bb5 {[%clk 0:00:02]}  Rc8 {[%clk 0:00:14]} 45. Nf4 {[%clk 0:00:02]}  Bb6 {[%clk 0:00:14]} 46. Nd5 {[%clk 0:00:02]}  Ba7 {[%clk 0:00:13]} 47. Ne7+ {[%clk 0:00:02]}  Kf8 {[%clk 0:00:13]} 48. Nxc8 {[%clk 0:00:03]}  Nxc8 {[%clk 0:00:14]} 49. c7 {[%clk 0:00:04]}  Ke7 {[%clk 0:00:14]} 50. Ba6 {[%clk 0:00:04]}  d3+ {[%clk 0:00:14]} 51. Kf1 {[%clk 0:00:04]}  d2 {[%clk 0:00:14]} 52. Rd1 {[%clk 0:00:04]}  Nd6 {[%clk 0:00:04]} 53. c8=Q {[%clk 0:00:04]}  Nxc8 {[%clk 0:00:05]} 54. Bxc8 {[%clk 0:00:05]}  Kd6 {[%clk 0:00:05]} 55. Rxd2+ {[%clk 0:00:04]} 1-0


[Site "https://www.chess.com"]

[Event "Titled Tuesday Blitz September 21 2021"]
[White "Devaev, Alexander"]
[Black "Stoyanov, Tsvetan"]
[WhiteFideId "4169395"]
[BlackFideId "2917173"]
[WhiteElo "2185"]
[BlackElo "2191"]
[Result "1-0"]
[Round "06"]
[TimeControl "180+1"]
[Date "2021.09.21"]
[WhiteClock "0:00:15"]
[BlackClock "0:00:03"]

1. d4 {[%clk 0:02:39]}  Nf6 {[%clk 0:02:58]} 2. c4 {[%clk 0:02:39]}  e6 {[%clk 0:02:58]} 3. Nf3 {[%clk 0:02:39]}  d5 {[%clk 0:02:57]} 4. cxd5 {[%clk 0:02:38]}  exd5 {[%clk 0:02:56]} 5. Nc3 {[%clk 0:02:39]}  c6 {[%clk 0:02:54]} 6. Bg5 {[%clk 0:02:39]}  Bf5 {[%clk 0:02:53]} 7. e3 {[%clk 0:02:39]}  Nbd7 {[%clk 0:02:53]} 8. Nh4 {[%clk 0:02:39]}  Be6 {[%clk 0:02:51]} 9. Nf3 {[%clk 0:02:39]}  h6 {[%clk 0:02:50]} 10. Bh4 {[%clk 0:02:39]}  Bf5 {[%clk 0:02:46]} 11. Bd3 {[%clk 0:02:38]}  Bxd3 {[%clk 0:02:45]} 12. Qxd3 {[%clk 0:02:39]}  Bd6 {[%clk 0:02:45]} 13. O-O {[%clk 0:02:39]}  O-O {[%clk 0:02:45]} 14. Rab1 {[%clk 0:02:39]}  a5 {[%clk 0:02:42]} 15. a3 {[%clk 0:02:38]}  Re8 {[%clk 0:02:42]} 16. Rfc1 {[%clk 0:02:33]}  Qb6 {[%clk 0:02:30]} 17. Bxf6 {[%clk 0:02:20]}  Nxf6 {[%clk 0:02:28]} 18. Qc2 {[%clk 0:02:21]}  Ne4 {[%clk 0:02:19]} 19. Nxe4 {[%clk 0:02:19]}  Rxe4 {[%clk 0:02:20]} 20. h3 {[%clk 0:02:18]}  Rae8 {[%clk 0:02:03]} 21. b4 {[%clk 0:02:16]}  axb4 {[%clk 0:02:00]} 22. axb4 {[%clk 0:02:15]}  Qb5 {[%clk 0:01:58]} 23. Rb3 {[%clk 0:01:34]}  Ra8 {[%clk 0:01:56]} 24. Qd3 {[%clk 0:01:22]}  Qxd3 {[%clk 0:01:45]} 25. Rxd3 {[%clk 0:01:20]}  Ra4 {[%clk 0:01:38]} 26. Rb3 {[%clk 0:01:17]}  Rxb4 {[%clk 0:01:16]} 27. Rxb4 {[%clk 0:01:16]}  Bxb4 {[%clk 0:01:17]} 28. Rb1 {[%clk 0:01:16]}  c5 {[%clk 0:01:17]} 29. dxc5 {[%clk 0:01:15]}  Bxc5 {[%clk 0:00:50]} 30. Rxb7 {[%clk 0:01:12]}  d4 {[%clk 0:00:48]} 31. Rb8+ {[%clk 0:01:01]}  Kh7 {[%clk 0:00:47]} 32. Rc8 {[%clk 0:00:52]}  Bb6 {[%clk 0:00:22]} 33. Rc6 {[%clk 0:00:52]}  Ba7 {[%clk 0:00:22]} 34. Ra6 {[%clk 0:00:49]}  Bc5 {[%clk 0:00:21]} 35. Ra5 {[%clk 0:00:48]}  Bb6 {[%clk 0:00:21]} 36. Rb5 {[%clk 0:00:49]}  Re6 {[%clk 0:00:16]} 37. exd4 {[%clk 0:00:43]}  Rd6 {[%clk 0:00:15]} 38. Rb4 {[%clk 0:00:36]}  Kg6 {[%clk 0:00:14]} 39. Kf1 {[%clk 0:00:36]}  Kf5 {[%clk 0:00:13]} 40. Rb5+ {[%clk 0:00:31]}  Ke4 {[%clk 0:00:11]} 41. Re5+ {[%clk 0:00:32]}  Kd3 {[%clk 0:00:11]} 42. Re7 {[%clk 0:00:32]}  Bxd4 {[%clk 0:00:09]} 43. Rxf7 {[%clk 0:00:31]}  Bf6 {[%clk 0:00:09]} 44. Ra7 {[%clk 0:00:28]}  Rb6 {[%clk 0:00:08]} 45. Ra3+ {[%clk 0:00:26]}  Bc3 {[%clk 0:00:08]} 46. g3 {[%clk 0:00:23]}  Rb1+ {[%clk 0:00:07]} 47. Kg2 {[%clk 0:00:24]}  Kc4 {[%clk 0:00:06]} 48. Ra8 {[%clk 0:00:21]}  Rb2 {[%clk 0:00:06]} 49. Rc8+ {[%clk 0:00:21]}  Kd3 {[%clk 0:00:06]} 50. Rd8+ {[%clk 0:00:22]}  Kc4 {[%clk 0:00:06]} 51. Rd7 {[%clk 0:00:19]}  Bf6 {[%clk 0:00:06]} 52. g4 {[%clk 0:00:18]}  Rb5 {[%clk 0:00:06]} 53. Rc7+ {[%clk 0:00:18]}  Kd3 {[%clk 0:00:05]} 54. Rd7+ {[%clk 0:00:18]}  Ke4 {[%clk 0:00:06]} 55. Rd1 {[%clk 0:00:17]}  Kf4 {[%clk 0:00:06]} 56. Rc1 {[%clk 0:00:17]}  Rb4 {[%clk 0:00:05]} 57. Rc2 {[%clk 0:00:16]}  Re4 {[%clk 0:00:04]} 58. Ng1 {[%clk 0:00:16]}  Ke5 {[%clk 0:00:03]} 59. Nf3+ {[%clk 0:00:15]}  Kd5 {[%clk 0:00:04]} 60. Rd2+ {[%clk 0:00:14]}  Ke6 {[%clk 0:00:03]} 61. Ng1 {[%clk 0:00:13]}  Rd4 {[%clk 0:00:03]} 62. Rc2 {[%clk 0:00:13]}  Kf7 {[%clk 0:00:04]} 63. Ne2 {[%clk 0:00:14]}  Rd5 {[%clk 0:00:03]} 64. Ng3 {[%clk 0:00:14]}  Ke6 {[%clk 0:00:03]} 65. Rc6+ {[%clk 0:00:13]}  Rd6 {[%clk 0:00:03]} 66. Rc2 {[%clk 0:00:14]}  Rd5 {[%clk 0:00:02]} 67. Nf5 {[%clk 0:00:15]}  Be5 {[%clk 0:00:01]} 68. Rc6+ {[%clk 0:00:15]}  Kf7 {[%clk 0:00:02]} 69. Ra6 {[%clk 0:00:14]}  Bf6 {[%clk 0:00:02]} 70. Ra7+ {[%clk 0:00:15]}  Kg6 {[%clk 0:00:02]} 71. Ra2 {[%clk 0:00:15]}  Rd3 {[%clk 0:00:02]} 72. Ng3 {[%clk 0:00:15]}  Rd5 {[%clk 0:00:03]} 73. Ne4 {[%clk 0:00:15]}  Rd7 {[%clk 0:00:02]} 74. Ng3 {[%clk 0:00:15]}  Re7 {[%clk 0:00:02]} 75. Nf5 {[%clk 0:00:16]}  Re6 {[%clk 0:00:02]} 76. Ra5 {[%clk 0:00:16]}  Bg5 {[%clk 0:00:02]} 77. h4 {[%clk 0:00:16]}  Bf6 {[%clk 0:00:03]} 78. h5+ {[%clk 0:00:16]}  Kg5 {[%clk 0:00:04]} 79. Nxg7+ {[%clk 0:00:15]}  Kxg4 {[%clk 0:00:03]} 80. Nxe6 {[%clk 0:00:15]} 1-0


[Site "https://www.chess.com"]